Workbook

Sheet scenario 2 template
A1: CMA computational engine - scenario 2
A3: Step 0: Given Data | C3: East-West Concurrency Group | G3: North-South Concurrency Group
A4: Volume data | B4: Ring 1 | C4: v1 | E4: v2 | G4: v3 | I4: v4
B5: Ring 2 | C5: v5 | E5: v6 | G5: v7 | I5: v8
A7: LT phasing, EW concurrency group
A8: LT phasing, NS concurrency group
A9: Cycle length | C9: sec
A10: Lost time per phase | C10: sec
A11: Saturation flow rate, TH | C11: veh/hr
A12: Saturation flow rate, protected LT | C12: veh/hr
A13: Saturation flow rate, permitted LT | C13: veh/hr
A16: Step 1: Compute the flow ratio Y for each movement present at the intersection
C17: East-West Concurrency Group | G17: North-South Concurrency Group
B18: Ring 1 | C18: v1 | E18: v2 | G18: v3 | I18: v4
C19: s1 | E19: s2 | G19: s3 | I19: s4
C20: Y1 | E20: Y2 | G20: Y3 | I20: Y4
B21: Ring 2 | C21: v5 | E21: v6 | G21: v7 | I21: v8
C22: s5 | E22: s6 | G22: s7 | I22: s8
C23: Y5 | E23: Y6 | G23: Y7 | I23: Y8
A25: Step 2: Determine the flow ratio sums for the phase sequences in each ring for each concurrency group (for the case of permitted LTs only)
C26: East-West Concurrency Group | G26: North-South Concurrency Group
B27: Ring 1 | C27: v1 | E27: v2 | G27: v3 | I27: v4
C28: s1 | E28: s2 | G28: s3 | I28: s4
C29: Y1 | E29: Y2 | G29: Y3 | I29: Y4
C30: YEW1 | G30: YNS1
B31: Ring 2 | C31: v5 | E31: v6 | G31: v7 | I31: v8
C32: s5 | E32: s6 | G32: s7 | I32: s8
C33: Y5 | E33: Y6 | G33: Y7 | I33: Y8
C34: YEW2 | G34: YNS2
A36: Step 3: Within each concurrency group, identify the movements with the maximum flow ratio sum (for protected left turns)
A37: or the movement with the maximum flow ratio (for permitted left turns). These movements are the critical movements
A38: for each concurrency group.
C39: EW ConGrp | E39: NS ConGrp | I39: East-West Concurrency Group | M39: North-South Concurrency Group
B40: Ring 1 | C40: v1 | D40: =IF(B7="Permitted",D18,"") ->  | E40: v3 | F40: =IF(B7="Permitted",H18,"") ->  | H40: Ring 1 | I40: v1 | K40: v2 | M40: v3 | O40: v4
C41: s1 | D41: =IF(B7="Permitted",D19,"") ->  | E41: s3 | F41: =IF(B7="Permitted",H19,"") ->  | I41: s1 | K41: s2 | M41: s3 | O41: s4
C42: Y1 | D42: =IF(B7="Permitted",D40/D41,"") ->  | E42: Y3 | F42: =IF(B7="Permitted",F40/F41,"") ->  | I42: Y1 | K42: Y2 | M42: Y3 | O42: Y4
C43: v2 | D43: =IF(B7="Permitted",F18,"") ->  | E43: v4 | F43: =IF(B7="Permitted",J18,"") ->  | I43: YEW1 | M43: YNS1
C44: s2 | D44: =IF(B7="Permitted",F19,"") ->  | E44: s4 | F44: =IF(B7="Permitted",J19,"") ->  | H44: Ring 2 | I44: v5 | K44: v6 | M44: v7 | O44: v8
C45: Y2 | D45: =IF(B7="Permitted",D43/D44,"") ->  | E45: Y4 | F45: =IF(B7="Permitted",F43/F44,"") ->  | I45: s5 | K45: s6 | M45: s7 | O45: s8
B46: Ring 2 | C46: v5 | D46: =IF(B7="Permitted",D21,"") ->  | E46: v7 | F46: =IF(B7="Permitted",H21,"") ->  | I46: Y5 | K46: Y6 | M46: Y7 | O46: Y8
C47: s5 | D47: =IF(B7="Permitted",D22,"") ->  | E47: s7 | F47: =IF(B7="Permitted",H22,"") ->  | I47: YEW2 | M47: YNS2
C48: Y5 | D48: =IF(B7="Permitted",D46/D47,"") ->  | E48: Y7 | F48: =IF(B7="Permitted",F46/F47,"") ->  | J48: YEW-critical | N48: YNS-critical
C49: v6 | D49: =IF(B7="Permitted",F21,"") ->  | E49: v8 | F49: =IF(B7="Permitted",J21,"") -> 
C50: s6 | D50: =IF(B7="Permitted",F22,"") ->  | E50: s8 | F50: =IF(B7="Permitted",J22,"") -> 
C51: Y6 | D51: =IF(B7="Permitted",D49/D50,"") ->  | E51: Y8 | F51: =IF(B7="Permitted",F49/F50,"") -> 
C52: YEW-critical | D52: =IF(B7="Permitted",MAX(D42,D45,D48,D51),"") ->  | E52: YNS-critical | F52: =IF(B7="Permitted",MAX(F42,F45,F48,F51),"") -> 
A54: Step 4. Determine the critical volume-to-capacity ratio Xc for the intersection.
A55: YEW-critical
A56: YNS-critical
A57: Lost time
A58: Xc
A60: Step 5: Based on the value of Xc calculated in step 4, determine the sufficiency of capacity.
A61: Sufficiency of capacity

Sheet scenario 2 formulas
A1: CMA computational engine - scenario 2
A3: Step 0: Given Data | C3: East-West Concurrency Group | G3: North-South Concurrency Group
A4: Volume data | B4: Ring 1 | C4: v1 | D4: 150 | E4: v2 | F4: 400 | G4: v3 | H4: 350 | I4: v4 | J4: 450
B5: Ring 2 | C5: v5 | D5: 200 | E5: v6 | F5: 400 | G5: v7 | H5: 300 | I5: v8 | J5: 600
A7: LT phasing, EW concurrency group | B7: Protected | E7: LT phasing options
A8: LT phasing, NS concurrency group | B8: Protected | E8: Permitted
A9: Cycle length | B9: 90 | C9: sec | E9: Protected
A10: Lost time per phase | B10: 4 | C10: sec
A11: Saturation flow rate, TH | B11: 1900 | C11: veh/hr
A12: Saturation flow rate, protected LT | B12: 1900 | C12: veh/hr
A13: Saturation flow rate, permitted LT | B13: 450 | C13: veh/hr
A16: Step 1: Compute the flow ratio Y for each movement present at the intersection
C17: East-West Concurrency Group | G17: North-South Concurrency Group
B18: Ring 1 | C18: v1 | D18: =D4 -> 150 | E18: v2 | F18: =F4 -> 400 | G18: v3 | H18: =H4 -> 350 | I18: v4 | J18: =J4 -> 450
C19: s1 | D19: =IF(B7="Permitted",B13,B12) -> 1900 | E19: s2 | F19: =B11 -> 1900 | G19: s3 | H19: =IF(B8="Permitted",B13,B12) -> 1900 | I19: s4 | J19: =B11 -> 1900
C20: Y1 | D20: =D18/D19 -> 0.07894736842 | E20: Y2 | F20: =F18/F19 -> 0.2105263158 | G20: Y3 | H20: =H18/H19 -> 0.1842105263 | I20: Y4 | J20: =J18/J19 -> 0.2368421053
B21: Ring 2 | C21: v5 | D21: =D5 -> 200 | E21: v6 | F21: =F5 -> 400 | G21: v7 | H21: =H5 -> 300 | I21: v8 | J21: =J5 -> 600
C22: s5 | D22: =IF(B7="Permitted",B13,B12) -> 1900 | E22: s6 | F22: =B11 -> 1900 | G22: s7 | H22: =IF(B8="Permitted",B13,B12) -> 1900 | I22: s8 | J22: =B11 -> 1900
C23: Y5 | D23: =D21/D22 -> 0.1052631579 | E23: Y6 | F23: =F21/F22 -> 0.2105263158 | G23: Y7 | H23: =H21/H22 -> 0.1578947368 | I23: Y8 | J23: =J21/J22 -> 0.3157894737
A25: Step 2: Determine the flow ratio sums for the phase sequences in each ring for each concurrency group (for the case of protected LTs only)
C26: East-West Concurrency Group | G26: North-South Concurrency Group
B27: Ring 1 | C27: v1 | D27: =IF(B7="Protected",D18,"") -> 150 | E27: v2 | F27: =IF(B7="Protected",F18,"") -> 400 | G27: v3 | H27: =IF(B8="Protected",H18,"") -> 350 | I27: v4 | J27: =IF(B8="Protected",J18,"") -> 450
C28: s1 | D28: =IF(B7="Protected",D19,"") -> 1900 | E28: s2 | F28: =IF(B7="Protected",F19,"") -> 1900 | G28: s3 | H28: =IF(B8="Protected",H19,"") -> 1900 | I28: s4 | J28: =IF(B8="Protected",J19,"") -> 1900
C29: Y1 | D29: =IF(B7="Protected",D20,"") -> 0.07894736842 | E29: Y2 | F29: =IF(B7="Protected",F20,"") -> 0.2105263158 | G29: Y3 | H29: =IF(B8="Protected",H20,"") -> 0.1842105263 | I29: Y4 | J29: =IF(B8="Protected",J20,"") -> 0.2368421053
C30: YEW1 | D30: =IF(B7="Protected",D29+F29,"") -> 0.2894736842 | G30: YNS1 | H30: =IF(B8="Protected",H29+J29,"") -> 0.4210526316
B31: Ring 2 | C31: v5 | D31: =IF(B7="Protected",D21,"") -> 200 | E31: v6 | F31: =IF(B7="Protected",F21,"") -> 400 | G31: v7 | H31: =IF(B8="Protected",H21,"") -> 300 | I31: v8 | J31: =IF(B8="Protected",J21,"") -> 600
C32: s5 | D32: =IF(B7="Protected",D22,"") -> 1900 | E32: s6 | F32: =IF(B7="Protected",F22,"") -> 1900 | G32: s7 | H32: =IF(B8="Protected",H22,"") -> 1900 | I32: s8 | J32: =IF(B8="Protected",J22,"") -> 1900
C33: Y5 | D33: =IF(B7="Protected",D23,"") -> 0.1052631579 | E33: Y6 | F33: =IF(B7="Protected",F23,"") -> 0.2105263158 | G33: Y7 | H33: =IF(B8="Protected",H23,"") -> 0.1578947368 | I33: Y8 | J33: =IF(B8="Protected",J23,"") -> 0.3157894737
C34: YEW2 | D34: =IF(B7="Protected",D33+F33,"") -> 0.3157894737 | G34: YNS2 | H34: =IF(B8="Protected",H33+J33,"") -> 0.4736842105
A36: Step 3: Within each concurrency group, identify the movements with the maximum flow ratio sum (for protected left turns)
A37: or the movement with the maximum flow ratio (for permitted left turns). These movements are the critical movements
A38: for each concurrency group.
C39: EW ConGrp | E39: NS ConGrp | I39: East-West Concurrency Group | M39: North-South Concurrency Group
B40: Ring 1 | C40: v1 | D40: =IF(B7="Permitted",D18,"") ->  | E40: v3 | F40: =IF(B7="Permitted",H18,"") ->  | H40: Ring 1 | I40: v1 | J40: =D27 -> 150 | K40: v2 | L40: =F27 -> 400 | M40: v3 | N40: =H27 -> 350 | O40: v4 | P40: =J27 -> 450
C41: s1 | D41: =IF(B7="Permitted",D19,"") ->  | E41: s3 | F41: =IF(B7="Permitted",H19,"") ->  | I41: s1 | J41: =D28 -> 1900 | K41: s2 | L41: =F28 -> 1900 | M41: s3 | N41: =H28 -> 1900 | O41: s4 | P41: =J28 -> 1900
C42: Y1 | D42: =IF(B7="Permitted",D40/D41,"") ->  | E42: Y3 | F42: =IF(B7="Permitted",F40/F41,"") ->  | I42: Y1 | J42: =D29 -> 0.07894736842 | K42: Y2 | L42: 0.2105263158 | M42: Y3 | N42: =H29 -> 0.1842105263 | O42: Y4 | P42: 0.2368421053
C43: v2 | D43: =IF(B7="Permitted",F18,"") ->  | E43: v4 | F43: =IF(B7="Permitted",J18,"") ->  | I43: YEW1 | J43: =D30 -> 0.2894736842 | M43: YNS1 | N43: =H30 -> 0.4210526316
C44: s2 | D44: =IF(B7="Permitted",F19,"") ->  | E44: s4 | F44: =IF(B7="Permitted",J19,"") ->  | H44: Ring 2 | I44: v5 | J44: =D31 -> 200 | K44: v6 | L44: =F31 -> 400 | M44: v7 | N44: =H31 -> 300 | O44: v8 | P44: =J31 -> 600
C45: Y2 | D45: =IF(B7="Permitted",D43/D44,"") ->  | E45: Y4 | F45: =IF(B7="Permitted",F43/F44,"") ->  | I45: s5 | J45: =D32 -> 1900 | K45: s6 | L45: =F32 -> 1900 | M45: s7 | N45: =H32 -> 1900 | O45: s8 | P45: =J32 -> 1900
B46: Ring 2 | C46: v5 | D46: =IF(B7="Permitted",D21,"") ->  | E46: v7 | F46: =IF(B7="Permitted",H21,"") ->  | I46: Y5 | J46: 0.1052631579 | K46: Y6 | L46: 0.2105263158 | M46: Y7 | N46: 0.1578947368 | O46: Y8 | P46: 0.3157894737
C47: s5 | D47: =IF(B7="Permitted",D22,"") ->  | E47: s7 | F47: =IF(B7="Permitted",H22,"") ->  | I47: YEW2 | J47: =D34 -> 0.3157894737 | M47: YNS2 | N47: =H34 -> 0.4736842105
C48: Y5 | D48: =IF(B7="Permitted",D46/D47,"") ->  | E48: Y7 | F48: =IF(B7="Permitted",F46/F47,"") ->  | J48: YEW-critical | K48: =IF(B7="Protected",MAX(J43,J47),"") -> 0.3157894737 | N48: YNS-critical | O48: =IF(B8="Protected",MAX(N43,N47),"") -> 0.4736842105
C49: v6 | D49: =IF(B7="Permitted",F21,"") ->  | E49: v8 | F49: =IF(B7="Permitted",J21,"") -> 
C50: s6 | D50: =IF(B7="Permitted",F22,"") ->  | E50: s8 | F50: =IF(B7="Permitted",J22,"") -> 
C51: Y6 | D51: =IF(B7="Permitted",D49/D50,"") ->  | E51: Y8 | F51: =IF(B7="Permitted",F49/F50,"") -> 
C52: YEW-critical | D52: =IF(B7="Permitted",MAX(D42,D45,D48,D51),"") ->  | E52: YNS-critical | F52: =IF(B7="Permitted",MAX(F42,F45,F48,F51),"") -> 
A54: Step 4. Determine the critical volume-to-capacity ratio Xc for the intersection. | B54: volume-to-capacity ratio Xc for the intersection. | C54: for the intersection.
A55: YEW-critical | B55: =IF(B7="Protected",K48,D52) -> 0.3157894737
A56: YNS-critical | B56: =IF(B7="Protected",O48,F52) -> 0.4736842105
A57: Lost time | B57: =LostTime(B7,B8) -> 16
A58: Xc | B58: =Xc(B55,B56,B9,B57) -> 0.960170697
A60: Step 5: Based on the value of Xc calculated in step 4, determine the sufficiency of capacity.
A61: Sufficiency of capacity | B61: =IF(B58<0.85,"Intersection is operating under capacity",IF(B58<0.95,"Intersection is operating near capacity",IF(B58<1,"Unstable flow results in wide variety of delay","The demand exceeds available capacity of the intersection"))) -> Unstable flow results in wide variety of delay

Sheet scenario 2 example 12
A1: CMA computational engine - scenario 2
A4: Step 0: Given Data | C4: East-West Concurrency Group | G4: North-South Concurrency Group
A5: Volume data | B5: Ring 1 | C5: v1 | D5: 150 | E5: v2 | F5: 400 | G5: v3 | H5: 350 | I5: v4 | J5: 450
B6: Ring 2 | C6: v5 | D6: 200 | E6: v6 | F6: 400 | G6: v7 | H6: 300 | I6: v8 | J6: 600
A8: LT phasing, EW concurrency group | B8: Protected | E8: LT phasing options
A9: LT phasing, NS concurrency group | B9: Protected | E9: Permitted
A10: Cycle length | B10: 90 | C10: sec | E10: Protected
A11: Lost time per phase | B11: 4 | C11: sec
A12: Saturation flow rate, TH | B12: 1900 | C12: veh/hr
A13: Saturation flow rate, protected LT | B13: 1900 | C13: veh/hr
A14: Saturation flow rate, permitted LT | B14: 450 | C14: veh/hr
A17: Step 1: Compute the flow ratio Y for each movement present at the intersection
C18: East-West Concurrency Group | G18: North-South Concurrency Group
B19: Ring 1 | C19: v1 | D19: =D5 -> 150 | E19: v2 | F19: =F5 -> 400 | G19: v3 | H19: =H5 -> 350 | I19: v4 | J19: =J5 -> 450
C20: s1 | D20: =IF(B8="Permitted",B14,B13) -> 1900 | E20: s2 | F20: =B12 -> 1900 | G20: s3 | H20: =IF(B9="Permitted",B14,B13) -> 1900 | I20: s4 | J20: =B12 -> 1900
C21: Y1 | D21: =D19/D20 -> 0.07894736842 | E21: Y2 | F21: =F19/F20 -> 0.2105263158 | G21: Y3 | H21: =H19/H20 -> 0.1842105263 | I21: Y4 | J21: =J19/J20 -> 0.2368421053
B22: Ring 2 | C22: v5 | D22: =D6 -> 200 | E22: v6 | F22: =F6 -> 400 | G22: v7 | H22: =H6 -> 300 | I22: v8 | J22: =J6 -> 600
C23: s5 | D23: =IF(B8="Permitted",B14,B13) -> 1900 | E23: s6 | F23: =B12 -> 1900 | G23: s7 | H23: =IF(B9="Permitted",B14,B13) -> 1900 | I23: s8 | J23: =B12 -> 1900
C24: Y5 | D24: =D22/D23 -> 0.1052631579 | E24: Y6 | F24: =F22/F23 -> 0.2105263158 | G24: Y7 | H24: =H22/H23 -> 0.1578947368 | I24: Y8 | J24: =J22/J23 -> 0.3157894737
A26: Step 2: Determine the flow ratio sums for the phase sequences in each ring for each concurrency group (for the case of protected LTs only)
C27: East-West Concurrency Group | G27: North-South Concurrency Group
B28: Ring 1 | C28: v1 | D28: =IF(B8="Protected",D19,"") -> 150 | E28: v2 | F28: =IF(B8="Protected",F19,"") -> 400 | G28: v3 | H28: =IF(B9="Protected",H19,"") -> 350 | I28: v4 | J28: =IF(B9="Protected",J19,"") -> 450
C29: s1 | D29: =IF(B8="Protected",D20,"") -> 1900 | E29: s2 | F29: =IF(B8="Protected",F20,"") -> 1900 | G29: s3 | H29: =IF(B9="Protected",H20,"") -> 1900 | I29: s4 | J29: =IF(B9="Protected",J20,"") -> 1900
C30: Y1 | D30: =IF(B8="Protected",D21,"") -> 0.07894736842 | E30: Y2 | F30: =IF(B8="Protected",F21,"") -> 0.2105263158 | G30: Y3 | H30: =IF(B9="Protected",H21,"") -> 0.1842105263 | I30: Y4 | J30: =IF(B9="Protected",J21,"") -> 0.2368421053
C31: YEW1 | D31: =IF(B8="Protected",D30+F30,"") -> 0.2894736842 | G31: YNS1 | H31: =IF(B9="Protected",H30+J30,"") -> 0.4210526316
B32: Ring 2 | C32: v5 | D32: =IF(B8="Protected",D22,"") -> 200 | E32: v6 | F32: =IF(B8="Protected",F22,"") -> 400 | G32: v7 | H32: =IF(B9="Protected",H22,"") -> 300 | I32: v8 | J32: =IF(B9="Protected",J22,"") -> 600
C33: s5 | D33: =IF(B8="Protected",D23,"") -> 1900 | E33: s6 | F33: =IF(B8="Protected",F23,"") -> 1900 | G33: s7 | H33: =IF(B9="Protected",H23,"") -> 1900 | I33: s8 | J33: =IF(B9="Protected",J23,"") -> 1900
C34: Y5 | D34: =IF(B8="Protected",D24,"") -> 0.1052631579 | E34: Y6 | F34: =IF(B8="Protected",F24,"") -> 0.2105263158 | G34: Y7 | H34: =IF(B9="Protected",H24,"") -> 0.1578947368 | I34: Y8 | J34: =IF(B9="Protected",J24,"") -> 0.3157894737
C35: YEW2 | D35: =IF(B8="Protected",D34+F34,"") -> 0.3157894737 | G35: YNS2 | H35: =IF(B9="Protected",H34+J34,"") -> 0.4736842105
A37: Step 3: Within each concurrency group, identify the movements with the maximum flow ratio sum (for protected left turns)
A38: or the movement with the maximum flow ratio (for permitted left turns). These movements are the critical movements
A39: for each concurrency group.
C40: EW ConGrp | E40: NS ConGrp | I40: East-West Concurrency Group | M40: North-South Concurrency Group
B41: Ring 1 | C41: v1 | D41: =IF(B8="Permitted",D19,"") ->  | E41: v3 | F41: =IF(B8="Permitted",H19,"") ->  | H41: Ring 1 | I41: v1 | J41: =D28 -> 150 | K41: v2 | L41: =F28 -> 400 | M41: v3 | N41: =H28 -> 350 | O41: v4 | P41: =J28 -> 450
C42: s1 | D42: =IF(B8="Permitted",D20,"") ->  | E42: s3 | F42: =IF(B8="Permitted",H20,"") ->  | I42: s1 | J42: =D29 -> 1900 | K42: s2 | L42: =F29 -> 1900 | M42: s3 | N42: =H29 -> 1900 | O42: s4 | P42: =J29 -> 1900
C43: Y1 | D43: =IF(B8="Permitted",D41/D42,"") ->  | E43: Y3 | F43: =IF(B8="Permitted",F41/F42,"") ->  | I43: Y1 | J43: =D30 -> 0.07894736842 | K43: Y2 | L43: 0.2105263158 | M43: Y3 | N43: =H30 -> 0.1842105263 | O43: Y4 | P43: 0.2368421053
C44: v2 | D44: =IF(B8="Permitted",F19,"") ->  | E44: v4 | F44: =IF(B8="Permitted",J19,"") ->  | I44: YEW1 | J44: =D31 -> 0.2894736842 | M44: YNS1 | N44: =H31 -> 0.4210526316
C45: s2 | D45: =IF(B8="Permitted",F20,"") ->  | E45: s4 | F45: =IF(B8="Permitted",J20,"") ->  | H45: Ring 2 | I45: v5 | J45: =D32 -> 200 | K45: v6 | L45: =F32 -> 400 | M45: v7 | N45: =H32 -> 300 | O45: v8 | P45: =J32 -> 600
C46: Y2 | D46: =IF(B8="Permitted",D44/D45,"") ->  | E46: Y4 | F46: =IF(B8="Permitted",F44/F45,"") ->  | I46: s5 | J46: =D33 -> 1900 | K46: s6 | L46: =F33 -> 1900 | M46: s7 | N46: =H33 -> 1900 | O46: s8 | P46: =J33 -> 1900
B47: Ring 2 | C47: v5 | D47: =IF(B8="Permitted",D22,"") ->  | E47: v7 | F47: =IF(B8="Permitted",H22,"") ->  | I47: Y5 | J47: 0.1052631579 | K47: Y6 | L47: 0.2105263158 | M47: Y7 | N47: 0.1578947368 | O47: Y8 | P47: 0.3157894737
C48: s5 | D48: =IF(B8="Permitted",D23,"") ->  | E48: s7 | F48: =IF(B8="Permitted",H23,"") ->  | I48: YEW2 | J48: =D35 -> 0.3157894737 | M48: YNS2 | N48: =H35 -> 0.4736842105
C49: Y5 | D49: =IF(B8="Permitted",D47/D48,"") ->  | E49: Y7 | F49: =IF(B8="Permitted",F47/F48,"") ->  | J49: YEW-critical | K49: =IF(B8="Protected",MAX(J44,J48),"") -> 0.3157894737 | N49: YNS-critical | O49: =IF(B9="Protected",MAX(N44,N48),"") -> 0.4736842105
C50: v6 | D50: =IF(B8="Permitted",F22,"") ->  | E50: v8 | F50: =IF(B8="Permitted",J22,"") -> 
C51: s6 | D51: =IF(B8="Permitted",F23,"") ->  | E51: s8 | F51: =IF(B8="Permitted",J23,"") -> 
C52: Y6 | D52: =IF(B8="Permitted",D50/D51,"") ->  | E52: Y8 | F52: =IF(B8="Permitted",F50/F51,"") -> 
C53: YEW-critical | D53: =IF(B8="Permitted",MAX(D43,D46,D49,D52),"") ->  | E53: YNS-critical | F53: =IF(B8="Permitted",MAX(F43,F46,F49,F52),"") -> 
A55: Step 4. Determine the critical volume-to-capacity ratio Xc for the intersection.
A56: YEW-critical | B56: =IF(B8="Protected",K49,D53) -> 0.3157894737
A57: YNS-critical | B57: =IF(B8="Protected",O49,F53) -> 0.4736842105
A58: Lost time | B58: =LostTime(B8,B9) -> 16
A59: Xc | B59: =Xc(B56,B57,B10,B58) -> 0.960170697
A61: Step 5: Based on the value of Xc calculated in step 4, determine the sufficiency of capacity.
A62: Sufficiency of capacity | B62: =IF(B59<0.85,"Intersection is operating under capacity",IF(B59<0.95,"Intersection is operating near capacity",IF(B59<1,"Unstable flow results in wide variety of delay","The demand exceeds available capacity of the intersection"))) -> Unstable flow results in wide variety of delay

Sheet scenario 2 example 13
A1: CMA computational engine - scenario 2
A4: Step 0: Given Data | C4: East-West Concurrency Group | G4: North-South Concurrency Group
A5: Volume data | B5: Ring 1 | C5: v1 | D5: 100 | E5: v2 | F5: 450 | G5: v3 | H5: 75 | I5: v4 | J5: 550
B6: Ring 2 | C6: v5 | D6: 75 | E6: v6 | F6: 600 | G6: v7 | H6: 150 | I6: v8 | J6: 250
A8: LT phasing, EW concurrency group | B8: Permitted | E8: LT phasing options
A9: LT phasing, NS concurrency group | B9: Permitted | E9: Permitted
A10: Cycle length | B10: 90 | C10: sec | E10: Protected
A11: Lost time per phase | B11: 4 | C11: sec
A12: Saturation flow rate, TH | B12: 1900 | C12: veh/hr
A13: Saturation flow rate, protected LT | B13: 1900 | C13: veh/hr
A14: Saturation flow rate, permitted LT | B14: 450 | C14: veh/hr
A17: Step 1: Compute the flow ratio Y for each movement present at the intersection
C18: East-West Concurrency Group | G18: North-South Concurrency Group
B19: Ring 1 | C19: v1 | D19: =D5 -> 100 | E19: v2 | F19: =F5 -> 450 | G19: v3 | H19: =H5 -> 75 | I19: v4 | J19: =J5 -> 550
C20: s1 | D20: =IF(B8="Permitted",B14,B13) -> 450 | E20: s2 | F20: =B12 -> 1900 | G20: s3 | H20: =IF(B9="Permitted",B14,B13) -> 450 | I20: s4 | J20: =B12 -> 1900
C21: Y1 | D21: =D19/D20 -> 0.2222222222 | E21: Y2 | F21: =F19/F20 -> 0.2368421053 | G21: Y3 | H21: =H19/H20 -> 0.1666666667 | I21: Y4 | J21: =J19/J20 -> 0.2894736842
B22: Ring 2 | C22: v5 | D22: =D6 -> 75 | E22: v6 | F22: =F6 -> 600 | G22: v7 | H22: =H6 -> 150 | I22: v8 | J22: =J6 -> 250
C23: s5 | D23: =IF(B8="Permitted",B14,B13) -> 450 | E23: s6 | F23: =B12 -> 1900 | G23: s7 | H23: =IF(B9="Permitted",B14,B13) -> 450 | I23: s8 | J23: =B12 -> 1900
C24: Y5 | D24: =D22/D23 -> 0.1666666667 | E24: Y6 | F24: =F22/F23 -> 0.3157894737 | G24: Y7 | H24: =H22/H23 -> 0.3333333333 | I24: Y8 | J24: =J22/J23 -> 0.1315789474
A26: Step 2: Determine the flow ratio sums for the phase sequences in each ring for each concurrency group (for the case of permitted LTs only)
C27: East-West Concurrency Group | G27: North-South Concurrency Group
B28: Ring 1 | C28: v1 | D28: =IF(B8="Protected",D19,"") ->  | E28: v2 | F28: =IF(B8="Protected",F19,"") ->  | G28: v3 | H28: =IF(B9="Protected",H19,"") ->  | I28: v4 | J28: =IF(B9="Protected",J19,"") -> 
C29: s1 | D29: =IF(B8="Protected",D20,"") ->  | E29: s2 | F29: =IF(B8="Protected",F20,"") ->  | G29: s3 | H29: =IF(B9="Protected",H20,"") ->  | I29: s4 | J29: =IF(B9="Protected",J20,"") -> 
C30: Y1 | D30: =IF(B8="Protected",D21,"") ->  | E30: Y2 | F30: =IF(B8="Protected",F21,"") ->  | G30: Y3 | H30: =IF(B9="Protected",H21,"") ->  | I30: Y4 | J30: =IF(B9="Protected",J21,"") -> 
C31: YEW1 | D31: =IF(B8="Protected",D30+F30,"") ->  | G31: YNS1 | H31: =IF(B9="Protected",H30+J30,"") -> 
B32: Ring 2 | C32: v5 | D32: =IF(B8="Protected",D22,"") ->  | E32: v6 | F32: =IF(B8="Protected",F22,"") ->  | G32: v7 | H32: =IF(B9="Protected",H22,"") ->  | I32: v8 | J32: =IF(B9="Protected",J22,"") -> 
C33: s5 | D33: =IF(B8="Protected",D23,"") ->  | E33: s6 | F33: =IF(B8="Protected",F23,"") ->  | G33: s7 | H33: =IF(B9="Protected",H23,"") ->  | I33: s8 | J33: =IF(B9="Protected",J23,"") -> 
C34: Y5 | D34: =IF(B8="Protected",D24,"") ->  | E34: Y6 | F34: =IF(B8="Protected",F24,"") ->  | G34: Y7 | H34: =IF(B9="Protected",H24,"") ->  | I34: Y8 | J34: =IF(B9="Protected",J24,"") -> 
C35: YEW2 | D35: =IF(B8="Protected",D34+F34,"") ->  | G35: YNS2 | H35: =IF(B9="Protected",H34+J34,"") -> 
A37: Step 3: Within each concurrency group, identify the movements with the maximum flow ratio sum (for protected left turns)
A38: or the movement with the maximum flow ratio (for permitted left turns). These movements are the critical movements
A39: for each concurrency group.
C40: EW ConGrp | E40: NS ConGrp | I40: East-West Concurrency Group | M40: North-South Concurrency Group
B41: Ring 1 | C41: v1 | D41: =IF(B8="Permitted",D19,"") -> 100 | E41: v3 | F41: =IF(B8="Permitted",H19,"") -> 75 | H41: Ring 1 | I41: v1 | J41: =D28 ->  | K41: v2 | L41: =F28 ->  | M41: v3 | N41: =H28 ->  | O41: v4 | P41: =J28 -> 
C42: s1 | D42: =IF(B8="Permitted",D20,"") -> 450 | E42: s3 | F42: =IF(B8="Permitted",H20,"") -> 450 | I42: s1 | J42: =D29 ->  | K42: s2 | L42: =F29 ->  | M42: s3 | N42: =H29 ->  | O42: s4 | P42: =J29 -> 
C43: Y1 | D43: =IF(B8="Permitted",D41/D42,"") -> 0.2222222222 | E43: Y3 | F43: =IF(B8="Permitted",F41/F42,"") -> 0.1666666667 | I43: Y1 | J43: =D30 ->  | K43: Y2 | M43: Y3 | N43: =H30 ->  | O43: Y4
C44: v2 | D44: =IF(B8="Permitted",F19,"") -> 450 | E44: v4 | F44: =IF(B8="Permitted",J19,"") -> 550 | I44: YEW1 | J44: =D31 ->  | M44: YNS1 | N44: =H31 -> 
C45: s2 | D45: =IF(B8="Permitted",F20,"") -> 1900 | E45: s4 | F45: =IF(B8="Permitted",J20,"") -> 1900 | H45: Ring 2 | I45: v5 | J45: =D32 ->  | K45: v6 | L45: =F32 ->  | M45: v7 | N45: =H32 ->  | O45: v8 | P45: =J32 -> 
C46: Y2 | D46: =IF(B8="Permitted",D44/D45,"") -> 0.2368421053 | E46: Y4 | F46: =IF(B8="Permitted",F44/F45,"") -> 0.2894736842 | I46: s5 | J46: =D33 ->  | K46: s6 | L46: =F33 ->  | M46: s7 | N46: =H33 ->  | O46: s8 | P46: =J33 -> 
B47: Ring 2 | C47: v5 | D47: =IF(B8="Permitted",D22,"") -> 75 | E47: v7 | F47: =IF(B8="Permitted",H22,"") -> 150 | I47: Y5 | K47: Y6 | M47: Y7 | O47: Y8
C48: s5 | D48: =IF(B8="Permitted",D23,"") -> 450 | E48: s7 | F48: =IF(B8="Permitted",H23,"") -> 450 | I48: YEW2 | J48: =D35 ->  | M48: YNS2 | N48: =H35 -> 
C49: Y5 | D49: =IF(B8="Permitted",D47/D48,"") -> 0.1666666667 | E49: Y7 | F49: =IF(B8="Permitted",F47/F48,"") -> 0.3333333333 | J49: YEW-critical | K49: =IF(B8="Protected",MAX(J44,J48),"") ->  | N49: YNS-critical | O49: =IF(B9="Protected",MAX(N44,N48),"") -> 
C50: v6 | D50: =IF(B8="Permitted",F22,"") -> 600 | E50: v8 | F50: =IF(B8="Permitted",J22,"") -> 250
C51: s6 | D51: =IF(B8="Permitted",F23,"") -> 1900 | E51: s8 | F51: =IF(B8="Permitted",J23,"") -> 1900
C52: Y6 | D52: =IF(B8="Permitted",D50/D51,"") -> 0.3157894737 | E52: Y8 | F52: =IF(B8="Permitted",F50/F51,"") -> 0.1315789474
C53: YEW-critical | D53: =IF(B8="Permitted",MAX(D43,D46,D49,D52),"") -> 0.3157894737 | E53: YNS-critical | F53: =IF(B8="Permitted",MAX(F43,F46,F49,F52),"") -> 0.3333333333
A55: Step 4. Determine the critical volume-to-capacity ratio Xc for the intersection.
A56: YEW-critical | B56: =IF(B8="Protected",K49,D53) -> 0.3157894737
A57: YNS-critical | B57: =IF(B8="Protected",O49,F53) -> 0.3333333333
A58: Lost time | B58: =LostTime(B8,B9) -> 8
A59: Xc | B59: =Xc(B56,B57,B10,B58) -> 0.7124518614
A61: Step 5: Based on the value of Xc calculated in step 4, determine the sufficiency of capacity.
A62: Sufficiency of capacity | B62: =IF(B59<0.85,"Intersection is operating under capacity",IF(B59<0.95,"Intersection is operating near capacity",IF(B59<1,"Unstable flow results in wide variety of delay","The demand exceeds available capacity of the intersection"))) -> Intersection is operating under capacity

Sheet scenario 2 example 23
A1: CMA computational engine - scenario 2
A3: Step 0: Given Data | C3: East-West Concurrency Group | G3: North-South Concurrency Group
A4: Volume data | B4: Ring 1 | C4: v1 | D4: 125 | E4: v2 | F4: 600 | G4: v3 | H4: 175 | I4: v4 | J4: 550
B5: Ring 2 | C5: v5 | D5: 275 | E5: v6 | F5: 550 | G5: v7 | H5: 250 | I5: v8 | J5: 675
A7: LT phasing, EW concurrency group | B7: Protected | E7: LT phasing options
A8: LT phasing, NS concurrency group | B8: Protected | E8: Permitted
A9: Cycle length | B9: 90 | C9: sec | E9: Protected
A10: Lost time per phase | B10: 4 | C10: sec
A11: Saturation flow rate, TH | B11: 1900 | C11: veh/hr
A12: Saturation flow rate, protected LT | B12: 1900 | C12: veh/hr
A13: Saturation flow rate, permitted LT | B13: 450 | C13: veh/hr
A16: Step 1: Compute the flow ratio Y for each movement present at the intersection
C17: East-West Concurrency Group | G17: North-South Concurrency Group
B18: Ring 1 | C18: v1 | D18: =D4 -> 125 | E18: v2 | F18: =F4 -> 600 | G18: v3 | H18: =H4 -> 175 | I18: v4 | J18: =J4 -> 550
C19: s1 | D19: =IF(B7="Permitted",B13,B12) -> 1900 | E19: s2 | F19: =B11 -> 1900 | G19: s3 | H19: =IF(B8="Permitted",B13,B12) -> 1900 | I19: s4 | J19: =B11 -> 1900
C20: Y1 | D20: =D18/D19 -> 0.06578947368 | E20: Y2 | F20: =F18/F19 -> 0.3157894737 | G20: Y3 | H20: =H18/H19 -> 0.09210526316 | I20: Y4 | J20: =J18/J19 -> 0.2894736842
B21: Ring 2 | C21: v5 | D21: =D5 -> 275 | E21: v6 | F21: =F5 -> 550 | G21: v7 | H21: =H5 -> 250 | I21: v8 | J21: =J5 -> 675
C22: s5 | D22: =IF(B7="Permitted",B13,B12) -> 1900 | E22: s6 | F22: =B11 -> 1900 | G22: s7 | H22: =IF(B8="Permitted",B13,B12) -> 1900 | I22: s8 | J22: =B11 -> 1900
C23: Y5 | D23: =D21/D22 -> 0.1447368421 | E23: Y6 | F23: =F21/F22 -> 0.2894736842 | G23: Y7 | H23: =H21/H22 -> 0.1315789474 | I23: Y8 | J23: =J21/J22 -> 0.3552631579
A25: Step 2: Determine the flow ratio sums for the phase sequences in each ring for each concurrency group (for the case of protected LTs only)
C26: East-West Concurrency Group | G26: North-South Concurrency Group
B27: Ring 1 | C27: v1 | D27: =IF(B7="Protected",D18,"") -> 125 | E27: v2 | F27: =IF(B7="Protected",F18,"") -> 600 | G27: v3 | H27: =IF(B8="Protected",H18,"") -> 175 | I27: v4 | J27: =IF(B8="Protected",J18,"") -> 550
C28: s1 | D28: =IF(B7="Protected",D19,"") -> 1900 | E28: s2 | F28: =IF(B7="Protected",F19,"") -> 1900 | G28: s3 | H28: =IF(B8="Protected",H19,"") -> 1900 | I28: s4 | J28: =IF(B8="Protected",J19,"") -> 1900
C29: Y1 | D29: =IF(B7="Protected",D20,"") -> 0.06578947368 | E29: Y2 | F29: =IF(B7="Protected",F20,"") -> 0.3157894737 | G29: Y3 | H29: =IF(B8="Protected",H20,"") -> 0.09210526316 | I29: Y4 | J29: =IF(B8="Protected",J20,"") -> 0.2894736842
C30: YEW1 | D30: =IF(B7="Protected",D29+F29,"") -> 0.3815789474 | G30: YNS1 | H30: =IF(B8="Protected",H29+J29,"") -> 0.3815789474
B31: Ring 2 | C31: v5 | D31: =IF(B7="Protected",D21,"") -> 275 | E31: v6 | F31: =IF(B7="Protected",F21,"") -> 550 | G31: v7 | H31: =IF(B8="Protected",H21,"") -> 250 | I31: v8 | J31: =IF(B8="Protected",J21,"") -> 675
C32: s5 | D32: =IF(B7="Protected",D22,"") -> 1900 | E32: s6 | F32: =IF(B7="Protected",F22,"") -> 1900 | G32: s7 | H32: =IF(B8="Protected",H22,"") -> 1900 | I32: s8 | J32: =IF(B8="Protected",J22,"") -> 1900
C33: Y5 | D33: =IF(B7="Protected",D23,"") -> 0.1447368421 | E33: Y6 | F33: =IF(B7="Protected",F23,"") -> 0.2894736842 | G33: Y7 | H33: =IF(B8="Protected",H23,"") -> 0.1315789474 | I33: Y8 | J33: =IF(B8="Protected",J23,"") -> 0.3552631579
C34: YEW2 | D34: =IF(B7="Protected",D33+F33,"") -> 0.4342105263 | G34: YNS2 | H34: =IF(B8="Protected",H33+J33,"") -> 0.4868421053
A36: Step 3: Within each concurrency group, identify the movements with the maximum flow ratio sum (for protected left turns)
A37: or the movement with the maximum flow ratio (for permitted left turns). These movements are the critical movements
A38: for each concurrency group.
C39: EW ConGrp | E39: NS ConGrp | I39: East-West Concurrency Group | M39: North-South Concurrency Group
B40: Ring 1 | C40: v1 | D40: =IF(B7="Permitted",D18,"") ->  | E40: v3 | F40: =IF(B7="Permitted",H18,"") ->  | H40: Ring 1 | I40: v1 | J40: =D27 -> 125 | K40: v2 | L40: =F27 -> 600 | M40: v3 | N40: =H27 -> 175 | O40: v4 | P40: =J27 -> 550
C41: s1 | D41: =IF(B7="Permitted",D19,"") ->  | E41: s3 | F41: =IF(B7="Permitted",H19,"") ->  | I41: s1 | J41: =D28 -> 1900 | K41: s2 | L41: =F28 -> 1900 | M41: s3 | N41: =H28 -> 1900 | O41: s4 | P41: =J28 -> 1900
C42: Y1 | D42: =IF(B7="Permitted",D40/D41,"") ->  | E42: Y3 | F42: =IF(B7="Permitted",F40/F41,"") ->  | I42: Y1 | J42: =D29 -> 0.06578947368 | K42: Y2 | L42: 0.3157894737 | M42: Y3 | N42: =H30 -> 0.3815789474 | O42: Y4 | P42: 0.2894736842
C43: v2 | D43: =IF(B7="Permitted",F18,"") ->  | E43: v4 | F43: =IF(B7="Permitted",J18,"") ->  | I43: YEW1 | J43: =D30 -> 0.3815789474 | M43: YNS1 | N43: =H30 -> 0.3815789474
C44: s2 | D44: =IF(B7="Permitted",F19,"") ->  | E44: s4 | F44: =IF(B7="Permitted",J19,"") ->  | H44: Ring 2 | I44: v5 | J44: =D31 -> 275 | K44: v6 | L44: =F31 -> 550 | M44: v7 | N44: =H31 -> 250 | O44: v8 | P44: =J31 -> 675
C45: Y2 | D45: =IF(B7="Permitted",D43/D44,"") ->  | E45: Y4 | F45: =IF(B7="Permitted",F43/F44,"") ->  | I45: s5 | J45: =D32 -> 1900 | K45: s6 | L45: =F32 -> 1900 | M45: s7 | N45: =H32 -> 1900 | O45: s8 | P45: =J32 -> 1900
B46: Ring 2 | C46: v5 | D46: =IF(B7="Permitted",D21,"") ->  | E46: v7 | F46: =IF(B7="Permitted",H21,"") ->  | I46: Y5 | J46: 0.1447368421 | K46: Y6 | L46: 0.2894736842 | M46: Y7 | N46: 0.1315789474 | O46: Y8 | P46: 0.3552631579
C47: s5 | D47: =IF(B7="Permitted",D22,"") ->  | E47: s7 | F47: =IF(B7="Permitted",H22,"") ->  | I47: YEW2 | J47: =D34 -> 0.4342105263 | M47: YNS2 | N47: =H34 -> 0.4868421053
C48: Y5 | D48: =IF(B7="Permitted",D46/D47,"") ->  | E48: Y7 | F48: =IF(B7="Permitted",F46/F47,"") ->  | J48: YEW-critical | K48: =IF(B7="Protected",MAX(J43,J47),"") -> 0.4342105263 | N48: YNS-critical | O48: =IF(B8="Protected",MAX(N43,N47),"") -> 0.4868421053
C49: v6 | D49: =IF(B7="Permitted",F21,"") ->  | E49: v8 | F49: =IF(B7="Permitted",J21,"") -> 
C50: s6 | D50: =IF(B7="Permitted",F22,"") ->  | E50: s8 | F50: =IF(B7="Permitted",J22,"") -> 
C51: Y6 | D51: =IF(B7="Permitted",D49/D50,"") ->  | E51: Y8 | F51: =IF(B7="Permitted",F49/F50,"") -> 
C52: YEW-critical | D52: =IF(B7="Permitted",MAX(D42,D45,D48,D51),"") ->  | E52: YNS-critical | F52: =IF(B7="Permitted",MAX(F42,F45,F48,F51),"") -> 
A54: Step 4. Determine the critical volume-to-capacity ratio Xc for the intersection.
A55: YEW-critical | B55: =IF(B7="Protected",K48,D52) -> 0.4342105263
A56: YNS-critical | B56: =IF(B7="Protected",O48,F52) -> 0.4868421053
A57: Lost time | B57: =LostTime(B7,B8) -> 16
A58: Xc | B58: =Xc(B55,B56,B9,B57) -> 1.120199147
A60: Step 5: Based on the value of Xc calculated in step 4, determine the sufficiency of capacity.
A61: Sufficiency of capacity | B61: =IF(B58<0.85,"Intersection is operating under capacity",IF(B58<0.95,"Intersection is operating near capacity",IF(B58<1,"Unstable flow results in wide variety of delay","The demand exceeds available capacity of the intersection"))) -> The demand exceeds available capacity of the intersection

Sheet scenario 2 example 24
A1: CMA computational engine - scenario 2
A3: Step 0: Given Data | C3: East-West Concurrency Group | G3: North-South Concurrency Group
A4: Volume data | B4: Ring 1 | C4: v1 | D4: 50 | E4: v2 | F4: 225 | G4: v3 | H4: 100 | I4: v4 | J4: 250
B5: Ring 2 | C5: v5 | D5: 75 | E5: v6 | F5: 200 | G5: v7 | H5: 75 | I5: v8 | J5: 325
A7: LT phasing, EW concurrency group | B7: Permitted | E7: LT phasing options
A8: LT phasing, NS concurrency group | B8: Permitted | E8: Permitted
A9: Cycle length | B9: 90 | C9: sec | E9: Protected
A10: Lost time per phase | B10: 4 | C10: sec
A11: Saturation flow rate, TH | B11: 1900 | C11: veh/hr
A12: Saturation flow rate, protected LT | B12: 1900 | C12: veh/hr
A13: Saturation flow rate, permitted LT | B13: 450 | C13: veh/hr
A16: Step 1: Compute the flow ratio Y for each movement present at the intersection
C17: East-West Concurrency Group | G17: North-South Concurrency Group
B18: Ring 1 | C18: v1 | D18: =D4 -> 50 | E18: v2 | F18: =F4 -> 225 | G18: v3 | H18: =H4 -> 100 | I18: v4 | J18: =J4 -> 250
C19: s1 | D19: =IF(B7="Permitted",B13,B12) -> 450 | E19: s2 | F19: =B11 -> 1900 | G19: s3 | H19: =IF(B8="Permitted",B13,B12) -> 450 | I19: s4 | J19: =B11 -> 1900
C20: Y1 | D20: =D18/D19 -> 0.1111111111 | E20: Y2 | F20: =F18/F19 -> 0.1184210526 | G20: Y3 | H20: =H18/H19 -> 0.2222222222 | I20: Y4 | J20: =J18/J19 -> 0.1315789474
B21: Ring 2 | C21: v5 | D21: =D5 -> 75 | E21: v6 | F21: =F5 -> 200 | G21: v7 | H21: =H5 -> 75 | I21: v8 | J21: =J5 -> 325
C22: s5 | D22: =IF(B7="Permitted",B13,B12) -> 450 | E22: s6 | F22: =B11 -> 1900 | G22: s7 | H22: =IF(B8="Permitted",B13,B12) -> 450 | I22: s8 | J22: =B11 -> 1900
C23: Y5 | D23: =D21/D22 -> 0.1666666667 | E23: Y6 | F23: =F21/F22 -> 0.1052631579 | G23: Y7 | H23: =H21/H22 -> 0.1666666667 | I23: Y8 | J23: =J21/J22 -> 0.1710526316
A25: Step 2: Determine the flow ratio sums for the phase sequences in each ring for each concurrency group (for the case of protected LTs only)
C26: East-West Concurrency Group | G26: North-South Concurrency Group
B27: Ring 1 | C27: v1 | D27: =IF(B7="Protected",D18,"") ->  | E27: v2 | F27: =IF(B7="Protected",F18,"") ->  | G27: v3 | H27: =IF(B8="Protected",H18,"") ->  | I27: v4 | J27: =IF(B8="Protected",J18,"") -> 
C28: s1 | D28: =IF(B7="Protected",D19,"") ->  | E28: s2 | F28: =IF(B7="Protected",F19,"") ->  | G28: s3 | H28: =IF(B8="Protected",H19,"") ->  | I28: s4 | J28: =IF(B8="Protected",J19,"") -> 
C29: Y1 | D29: =IF(B7="Protected",D20,"") ->  | E29: Y2 | F29: =IF(B7="Protected",F20,"") ->  | G29: Y3 | H29: =IF(B8="Protected",H20,"") ->  | I29: Y4 | J29: =IF(B8="Protected",J20,"") -> 
C30: YEW1 | D30: =IF(B7="Protected",D29+F29,"") ->  | G30: YNS1 | H30: =IF(B8="Protected",H29+J29,"") -> 
B31: Ring 2 | C31: v5 | D31: =IF(B7="Protected",D21,"") ->  | E31: v6 | F31: =IF(B7="Protected",F21,"") ->  | G31: v7 | H31: =IF(B8="Protected",H21,"") ->  | I31: v8 | J31: =IF(B8="Protected",J21,"") -> 
C32: s5 | D32: =IF(B7="Protected",D22,"") ->  | E32: s6 | F32: =IF(B7="Protected",F22,"") ->  | G32: s7 | H32: =IF(B8="Protected",H22,"") ->  | I32: s8 | J32: =IF(B8="Protected",J22,"") -> 
C33: Y5 | D33: =IF(B7="Protected",D23,"") ->  | E33: Y6 | F33: =IF(B7="Protected",F23,"") ->  | G33: Y7 | H33: =IF(B8="Protected",H23,"") ->  | I33: Y8 | J33: =IF(B8="Protected",J23,"") -> 
C34: YEW2 | D34: =IF(B7="Protected",D33+F33,"") ->  | G34: YNS2 | H34: =IF(B8="Protected",H33+J33,"") -> 
A36: Step 3: Within each concurrency group, identify the movements with the maximum flow ratio sum (for protected left turns)
A37: or the movement with the maximum flow ratio (for permitted left turns). These movements are the critical movements
A38: for each concurrency group.
C39: EW ConGrp | E39: NS ConGrp | I39: East-West Concurrency Group | M39: North-South Concurrency Group
B40: Ring 1 | C40: v1 | D40: =IF(B7="Permitted",D18,"") -> 50 | E40: v3 | F40: =IF(B7="Permitted",H18,"") -> 100 | H40: Ring 1 | I40: v1 | J40: =D27 ->  | K40: v2 | L40: =F27 ->  | M40: v3 | N40: =H27 ->  | O40: v4 | P40: =J27 -> 
C41: s1 | D41: =IF(B7="Permitted",D19,"") -> 450 | E41: s3 | F41: =IF(B7="Permitted",H19,"") -> 450 | I41: s1 | J41: =D28 ->  | K41: s2 | L41: =F28 ->  | M41: s3 | N41: =H28 ->  | O41: s4 | P41: =J28 -> 
C42: Y1 | D42: =IF(B7="Permitted",D40/D41,"") -> 0.1111111111 | E42: Y3 | F42: =IF(B7="Permitted",F40/F41,"") -> 0.2222222222 | I42: Y1 | J42: =D29 ->  | K42: Y2 | M42: Y3 | N42: =H30 ->  | O42: Y4
C43: v2 | D43: =IF(B7="Permitted",F18,"") -> 225 | E43: v4 | F43: =IF(B7="Permitted",J18,"") -> 250 | I43: YEW1 | J43: =D30 ->  | M43: YNS1 | N43: =H30 -> 
C44: s2 | D44: =IF(B7="Permitted",F19,"") -> 1900 | E44: s4 | F44: =IF(B7="Permitted",J19,"") -> 1900 | H44: Ring 2 | I44: v5 | J44: =D31 ->  | K44: v6 | L44: =F31 ->  | M44: v7 | N44: =H31 ->  | O44: v8 | P44: =J31 -> 
C45: Y2 | D45: =IF(B7="Permitted",D43/D44,"") -> 0.1184210526 | E45: Y4 | F45: =IF(B7="Permitted",F43/F44,"") -> 0.1315789474 | I45: s5 | J45: =D32 ->  | K45: s6 | L45: =F32 ->  | M45: s7 | N45: =H32 ->  | O45: s8 | P45: =J32 -> 
B46: Ring 2 | C46: v5 | D46: =IF(B7="Permitted",D21,"") -> 75 | E46: v7 | F46: =IF(B7="Permitted",H21,"") -> 75 | I46: Y5 | K46: Y6 | M46: Y7 | O46: Y8
C47: s5 | D47: =IF(B7="Permitted",D22,"") -> 450 | E47: s7 | F47: =IF(B7="Permitted",H22,"") -> 450 | I47: YEW2 | J47: =D34 ->  | M47: YNS2 | N47: =H34 -> 
C48: Y5 | D48: =IF(B7="Permitted",D46/D47,"") -> 0.1666666667 | E48: Y7 | F48: =IF(B7="Permitted",F46/F47,"") -> 0.1666666667 | J48: YEW-critical | K48: =IF(B7="Protected",MAX(J43,J47),"") ->  | N48: YNS-critical | O48: =IF(B8="Protected",MAX(N43,N47),"") -> 
C49: v6 | D49: =IF(B7="Permitted",F21,"") -> 200 | E49: v8 | F49: =IF(B7="Permitted",J21,"") -> 325
C50: s6 | D50: =IF(B7="Permitted",F22,"") -> 1900 | E50: s8 | F50: =IF(B7="Permitted",J22,"") -> 1900
C51: Y6 | D51: =IF(B7="Permitted",D49/D50,"") -> 0.1052631579 | E51: Y8 | F51: =IF(B7="Permitted",F49/F50,"") -> 0.1710526316
C52: YEW-critical | D52: =IF(B7="Permitted",MAX(D42,D45,D48,D51),"") -> 0.1666666667 | E52: YNS-critical | F52: =IF(B7="Permitted",MAX(F42,F45,F48,F51),"") -> 0.2222222222
A54: Step 4. Determine the critical volume-to-capacity ratio Xc for the intersection.
A55: YEW-critical | B55: =IF(B7="Protected",K48,D52) -> 0.1666666667
A56: YNS-critical | B56: =IF(B7="Protected",O48,F52) -> 0.2222222222
A57: Lost time | B57: =LostTime(B7,B8) -> 8
A58: Xc | B58: =Xc(B55,B56,B9,B57) -> 0.4268292683
A60: Step 5: Based on the value of Xc calculated in step 4, determine the sufficiency of capacity.
A61: Sufficiency of capacity | B61: =IF(B58<0.85,"Intersection is operating under capacity",IF(B58<0.95,"Intersection is operating near capacity",IF(B58<1,"Unstable flow results in wide variety of delay","The demand exceeds available capacity of the intersection"))) -> Intersection is operating under capacity
